bitfinex-derivatives/quotes_BTCF0:USTF0_20250828
["timestamp","ask_amount","ask_price","bid_price","bid_amount"]
[1756347868817,1.6995529,111640.0,111630.0,1.03183]
[1756347869726,0.8745129,111640.0,111630.0,1.03183]
[1756347870121,1.6995129,111640.0,111630.0,1.03183]
[1756347872022,1.8483129,111640.0,111630.0,1.03183]
[1756347872325,1.6995129,111640.0,111630.0,1.03183]
[1756347873325,0.8745129,111640.0,111630.0,1.03183]
[1756347873627,1.31792923,111640.0,111630.0,1.03183]
[1756347873822,1.6995129,111640.0,111630.0,1.03183]
[1756347880041,1.6995129,111640.0,111630.0,0.954723]
[1756347880339,1.6995129,111640.0,111630.0,0.897683]
[1756347880528,1.74779485,111640.0,111630.0,0.897683]
[1756347881335,1.6995129,111640.0,111630.0,0.891253]
[1756347881839,1.69962972,111640.0,111630.0,0.888693]
[1756347884240,1.69962972,111640.0,111630.0,0.95949]
[1756347884542,1.69962972,111640.0,111630.0,0.9331851]
[1756347885340,0.87462972,111640.0,111630.0,0.9331851]
[1756347885538,1.69954972,111640.0,111630.0,0.9331851]
[1756347885939,1.69954972,111640.0,111630.0,0.9489351]
[1756347886239,1.69954972,111640.0,111630.0,0.9711151]
[1756347886439,1.69954972,111640.0,111630.0,1.0283051]
[1756347887335,1.74783167,111640.0,111630.0,1.0283051]
[1756347888937,0.92291167,111640.0,111630.0,1.0283051]
[1756347889139,1.74783167,111640.0,111630.0,1.0283051]
[1756347891344,1.79566421,111640.0,111630.0,1.0283051]
[1756347891640,1.94446421,111640.0,111630.0,1.0283051]
[1756347891841,1.11954421,111640.0,111630.0,1.0283051]
[1756347892143,1.94442421,111640.0,111630.0,1.0283051]
[1756347892343,0.541328,111640.0,111630.0,1.45772131]
[1756347892535,1.79562421,111640.0,111630.0,1.45772131]
[1756347893139,0.92246226,111640.0,111630.0,1.45772131]
[1756347893342,1.74734226,111640.0,111630.0,1.45772131]
[1756347893945,1.41734226,111640.0,111630.0,1.45772131]
[1756347894241,0.59246226,111640.0,111630.0,1.45772131]
[1756347894437,1.41734226,111640.0,111630.0,1.45772131]
[1756347894638,1.73734226,111640.0,111630.0,1.45772131]
[1756347895346,1.30792605,111640.0,111630.0,1.0283051]
[1756347897645,0.0262874,111640.0,111630.0,1.65991082]
[1756347897946,0.82494,111650.0,111640.0,0.2330992]
[1756347898139,0.73417,111650.0,111640.0,1.61470492]
[1756347898343,0.52112,111650.0,111640.0,1.61470492]
[1756347898545,0.46058,111650.0,111640.0,1.61470492]
[1756347898739,0.45793,111650.0,111640.0,1.61470492]
[1756347898946,0.87167051,111660.0,111640.0,1.52765492]
[1756347899141,0.87167051,111660.0,111650.0,0.38160572]
[1756347899450,0.87157051,111660.0,111650.0,1.18160572]
[1756347899841,0.85346,111660.0,111650.0,1.43160572]
[1756347900242,0.85346,111660.0,111650.0,1.52116682]
[1756347900650,0.85446,111660.0,111650.0,1.52116682]
[1756347900950,0.8725108,111660.0,111650.0,1.52116682]
[1756347901152,0.8725108,111660.0,111650.0,1.43160572]
[1756347901445,0.8725108,111660.0,111650.0,1.52116692]
[1756347901645,0.0201508,111660.0,111650.0,1.52116692]
[1756347902242,0.0486708,111660.0,111650.0,1.52116692]
[1756347903243,0.0476708,111660.0,111650.0,1.52216692]
[1756347903843,0.0191508,111660.0,111650.0,1.52216692]
[1756347904044,0.0181508,111660.0,111650.0,1.52216692]
[1756347904750,0.0466708,111660.0,111650.0,1.52216692]
[1756347907052,0.0466708,111660.0,111650.0,1.52376692]
[1756347908153,0.1629008,111660.0,111650.0,1.27632692]
[1756347909250,0.1373108,111660.0,111650.0,1.27632692]
[1756347909555,0.1039408,111660.0,111650.0,1.27632692]
[1756347910252,0.0466708,111660.0,111650.0,1.27632692]
[1756347920661,0.1629008,111660.0,111650.0,1.27632692]
[1756347921566,0.0466708,111660.0,111650.0,1.27632692]
[1756347922063,0.0181508,111660.0,111650.0,1.27632692]
[1756347922258,0.0466708,111660.0,111650.0,1.27632692]
[1756347922464,0.0476708,111660.0,111650.0,1.27632692]
[1756347923167,0.0476708,111660.0,111650.0,1.27532692]
[1756347923466,0.0486708,111660.0,111650.0,1.27532692]
[1756347923872,0.0476708,111660.0,111650.0,1.27532692]
[1756347924061,0.1066308,111660.0,111650.0,1.27532692]
[1756347924365,0.0810408,111660.0,111650.0,1.27532692]
[1756347924569,0.0466708,111660.0,111650.0,1.27532692]
[1756347929059,0.1058808,111660.0,111650.0,1.27532692]
[1756347929564,0.0466708,111660.0,111650.0,1.27532692]
[1756347930471,0.0481108,111660.0,111650.0,1.27532692]
[1756347930869,0.0181508,111660.0,111650.0,1.27532692]
[1756347931165,0.0181508,111660.0,111650.0,2.09956692]
[1756347931362,0.0181508,111660.0,111650.0,2.34956692]
[1756347932369,0.0173208,111660.0,111650.0,2.34956692]
[1756347933064,0.03006,111670.0,111660.0,0.0895532]
[1756347933270,0.78956881,111680.0,111670.0,0.0895451]
[1756347933569,0.83336729,111680.0,111670.0,0.84115528]
[1756347934971,0.83436729,111680.0,111670.0,0.84115528]
[1756347935171,0.83536729,111680.0,111670.0,0.84115528]
[1756347935869,1.21536729,111680.0,111670.0,0.84115528]
[1756347936065,1.21536729,111680.0,111670.0,0.45954956]
[1756347936268,1.21536729,111680.0,111670.0,0.37000446]
[1756347937166,1.84697301,111680.0,111670.0,0.37000446]
[1756347938369,1.46536729,111680.0,111670.0,0.37000446]
[1756347939871,1.35180729,111680.0,111670.0,0.45954956]
[1756347941165,1.71180729,111680.0,111670.0,0.45954956]
[1756347941366,1.35180729,111680.0,111670.0,0.45954956]
[1756347942072,1.68180729,111680.0,111670.0,0.45954956]
[1756347943268,1.68180729,111680.0,111670.0,0.37000446]
[1756347945369,2.06341301,111680.0,111670.0,0.37000446]
[1756347945669,1.68180729,111680.0,111670.0,0.37000446]
[1756347945864,2.06341301,111680.0,111670.0,0.33500446]
[1756347946373,2.06341301,111680.0,111670.0,0.24259446]
[1756347947372,2.44501873,111680.0,111670.0,0.24259446]
[1756347947675,2.06341301,111680.0,111670.0,0.21518446]
[1756347949077,0.85772729,111680.0,111670.0,0.25505446]
[1756347949279,0.64772729,111680.0,111670.0,0.33062446]
[1756347949481,1.10172729,111680.0,111670.0,0.33062446]
[1756347949779,1.45172729,111680.0,111670.0,0.74017018]
[1756347949980,1.45172729,111680.0,111670.0,0.35856446]
[1756347950181,0.27772729,111680.0,111670.0,0.35856446]
[1756347950382,1.10172729,111680.0,111670.0,0.35856446]
[1756347950581,1.43172729,111680.0,111670.0,0.35856446]
[1756347950981,1.81333301,111680.0,111670.0,0.33062446]
[1756347951170,1.81343301,111680.0,111670.0,0.33062446]
[1756347951979,1.81309195,111680.0,111670.0,0.33062446]
[1756347952177,1.81309195,111680.0,111670.0,0.31199446]
[1756347952575,1.43148623,111680.0,111670.0,0.33062446]
[1756347952776,1.81309195,111680.0,111670.0,0.33062446]
[1756347953177,0.65909195,111680.0,111670.0,0.33062446]
[1756347953478,1.85309195,111680.0,111670.0,0.33062446]
[1756347954684,1.85309195,111680.0,111670.0,0.25505446]
[1756347954886,1.85309195,111680.0,111670.0,0.28656446]
[1756347955085,1.85309195,111680.0,111670.0,0.31199446]
[1756347957187,1.85309195,111680.0,111670.0,0.25505446]
[1756347957784,1.85309195,111680.0,111670.0,0.32505446]
[1756347957987,1.85309195,111680.0,111670.0,0.28518446]
[1756347959780,1.85309195,111680.0,111670.0,0.30256446]
[1756347959982,1.85309195,111680.0,111670.0,0.32505446]
[1756347960178,1.85309195,111680.0,111670.0,0.28518446]
[1756347960696,1.02909195,111680.0,111670.0,0.28518446]
[1756347960896,1.85305195,111680.0,111670.0,0.28518446]
[1756347962194,2.25185195,111680.0,111670.0,0.28518446]
[1756347962497,2.48465767,111680.0,111670.0,0.23357596]
[1756347962692,2.48465767,111680.0,111670.0,0.07]
[1756347962895,2.48461767,111680.0,111670.0,0.43]
[1756347963095,2.10301195,111680.0,111670.0,0.43]
[1756347963794,1.27909195,111680.0,111670.0,0.43]
[1756347963994,2.10301195,111680.0,111670.0,0.46901]
[1756347964202,2.10301195,111680.0,111670.0,0.57671]
[1756347964401,1.27909195,111680.0,111670.0,0.57671]
[1756347964600,2.10301195,111680.0,111670.0,0.57671]
[1756347965389,1.43778948,111680.0,111670.0,0.57671]
[1756347966303,1.06778948,111680.0,111670.0,0.57671]
[1756347966496,1.40778948,111680.0,111670.0,0.57671]
[1756347967302,0.60386948,111680.0,111670.0,0.57671]
[1756347967504,1.42774948,111680.0,111670.0,0.57671]
[1756347968100,1.06774948,111680.0,111670.0,0.57671]
[1756347969001,1.43774948,111680.0,111670.0,0.57671]
[1756347969199,1.06774948,111680.0,111670.0,0.57671]
[1756347969807,1.44774948,111680.0,111670.0,0.57671]
[1756347970007,0.62386948,111680.0,111670.0,0.57671]
[1756347970206,1.06774948,111680.0,111670.0,0.57671]
[1756347970396,1.42774948,111680.0,111670.0,0.57671]
[1756347970600,1.06774948,111680.0,111670.0,0.57671]
[1756347971096,1.41774948,111680.0,111670.0,0.57671]
[1756347973307,1.06770948,111680.0,111670.0,1.20831572]
[1756347973506,1.40770948,111680.0,111670.0,1.20831572]
[1756347974300,0.24386948,111680.0,111670.0,1.20831572]
[1756347974506,1.06770948,111680.0,111670.0,1.20831572]
[1756347975207,1.06766948,111680.0,111670.0,1.29786092]
[1756347975410,1.39766948,111680.0,111670.0,1.20831572]
[1756347976412,1.37280881,111680.0,111670.0,1.20831572]
[1756347977510,1.39768219,111680.0,111670.0,1.20831572]
[1756347977901,1.39768219,111680.0,111670.0,0.82671]
[1756347978103,1.39768219,111680.0,111670.0,1.29786092]
[1756347981112,0.24388219,111680.0,111670.0,1.20831572]
[1756347981310,1.06764219,111680.0,111670.0,1.20831572]
[1756347981806,1.44764219,111680.0,111670.0,0.82671]
[1756347987417,1.42276881,111680.0,111670.0,0.82671]
[1756347990510,0.21900881,111680.0,111670.0,0.82671]
[1756347990811,1.38260881,111680.0,111670.0,0.82671]
[1756347994114,1.7891913,111680.0,111670.0,0.4521]
[1756347994320,2.0391913,111680.0,111670.0,0.43]
[1756347995218,2.0391913,111680.0,111670.0,0.4527]
[1756347995420,2.0391913,111680.0,111670.0,0.50441]
[1756347995818,2.0391913,111680.0,111670.0,0.4527]
[1756347996019,2.0391913,111680.0,111670.0,0.50441]
[1756347996619,1.86621258,111680.0,111670.0,0.50441]
[1756347996821,1.88366258,111680.0,111670.0,0.50441]
[1756347997523,1.95377017,111680.0,111670.0,0.46989]
[1756347997722,1.97542309,111680.0,111670.0,0.46989]
[1756347998021,1.97534309,111680.0,111670.0,0.5302]
[1756347998217,1.99534309,111680.0,111670.0,0.5302]
[1756347999326,1.17182309,111680.0,111670.0,0.5302]
[1756347999520,1.99530309,111680.0,111670.0,0.5302]
[1756348000321,1.61369737,111680.0,111670.0,0.5302]
[1756348001526,1.61365737,111680.0,111670.0,0.5302]
[1756348002921,0.79021737,111680.0,111670.0,0.5302]
[1756348003122,1.59361737,111680.0,111670.0,0.5302]
[1756348003529,0.77021737,111680.0,111670.0,0.5302]
[1756348003828,0.43021737,111680.0,111670.0,0.5302]
[1756348004023,0.79021737,111680.0,111670.0,0.5302]
[1756348004326,1.59361737,111680.0,111670.0,0.5302]
[1756348004523,0.43021737,111680.0,111670.0,0.5302]
[1756348004719,0.75021737,111680.0,111670.0,0.5302]
[1756348004924,1.57357737,111680.0,111670.0,0.5302]
[1756348007228,0.43021737,111680.0,111670.0,0.5302]
[1756348007426,0.18021737,111680.0,111670.0,1.00135082]
[1756348007627,0.11131051,111680.0,111670.0,1.25135082]
[1756348007833,0.52678051,111680.0,111670.0,1.25135082]
[1756348008229,0.91718051,111680.0,111670.0,1.25135082]
[1756348009831,0.09386051,111680.0,111670.0,1.25135082]
[1756348013137,0.09386051,111680.0,111670.0,1.00135082]
[1756348014941,0.09386051,111680.0,111670.0,1.26695082]
[1756348018743,0.09386051,111680.0,111670.0,2.09007082]
[1756348019844,0.09386051,111680.0,111670.0,2.09003082]
[1756348020045,0.09386051,111680.0,111670.0,0.8853451]
[1756348020241,0.13691051,111680.0,111670.0,1.26695082]
[1756348020944,0.13691051,111680.0,111670.0,1.00135082]
[1756348022850,0.38691051,111680.0,111670.0,0.5302]
[1756348023039,1.11851623,111680.0,111670.0,0.5302]
[1756348023653,1.11851623,111680.0,111670.0,0.4527]
[1756348023948,1.16636623,111680.0,111670.0,0.48222]
[1756348024143,1.16636623,111680.0,111670.0,0.43]
[1756348024743,1.19128213,111680.0,111670.0,0.43]
[1756348029047,1.19128213,111680.0,111670.0,0.50009]
[1756348029251,0.94128213,111680.0,111670.0,0.58046]
[1756348029454,0.98482641,111680.0,111670.0,1.05161082]
[1756348029656,0.16182641,111680.0,111670.0,1.05161082]
[1756348029856,0.75270641,111680.0,111670.0,1.05161082]
[1756348030157,1.12089641,111680.0,111670.0,0.6700051]
[1756348031158,1.15055641,111680.0,111670.0,0.6700051]
[1756348031358,1.00301641,111680.0,111670.0,0.6700051]
[1756348031758,1.34301641,111680.0,111670.0,0.6700051]
[1756348032253,1.34301641,111680.0,111670.0,0.58046]
[1756348032456,1.37267641,111680.0,111670.0,0.58046]
[1756348032655,0.18001641,111680.0,111670.0,0.6700052]
[1756348032957,1.32297641,111680.0,111670.0,1.05161092]
[1756348033759,1.32297641,111680.0,111670.0,0.6700052]
[1756348034054,0.18001641,111680.0,111670.0,0.6700052]
[1756348034259,1.00297641,111680.0,111670.0,0.6700052]
[1756348034861,1.00297641,111680.0,111670.0,0.58046]
[1756348035053,0.11877641,111680.0,111670.0,1.30161102]
[1756348035259,0.65050051,111680.0,111670.0,1.30161102]
[1756348035561,0.98050051,111680.0,111670.0,1.30161102]
[1756348036064,0.65050051,111680.0,111670.0,1.30161102]
[1756348037559,0.64950051,111680.0,111670.0,1.30161102]
[1756348038261,0.64850051,111680.0,111670.0,1.30161102]
[1756348039656,0.64840051,111680.0,111670.0,1.30161102]
[1756348039861,0.45261008,111680.0,111670.0,1.30161102]
[1756348040458,0.47433282,111680.0,111670.0,1.21206572]
[1756348040656,0.47433282,111680.0,111670.0,0.83046]
[1756348040657,0.56523282,111680.0,111670.0,0.83046]
[1756348040860,0.53557282,111680.0,111670.0,1.21206572]
[1756348041362,0.53557282,111680.0,111670.0,1.30161102]
[1756348043062,0.60825179,111680.0,111670.0,1.30161102]
[1756348044858,0.58292179,111680.0,111670.0,1.30161102]
[1756348045063,0.56473179,111680.0,111670.0,1.30161102]
[1756348046760,0.59006179,111680.0,111670.0,1.30161102]
[1756348055970,0.56473179,111680.0,111670.0,1.30161102]
[1756348056173,0.59281179,111680.0,111670.0,1.30161102]
[1756348056474,0.61135179,111680.0,111670.0,0.9200053]
[1756348056668,0.61135179,111680.0,111670.0,1.30161102]
[1756348058374,0.11212171,111680.0,111670.0,1.30161102]
[1756348058674,0.11222171,111680.0,111670.0,1.30161102]
[1756348058871,0.09450171,111680.0,111670.0,1.07161425]
[1756348060271,0.00277897,111680.0,111670.0,1.51721425]
[1756348060471,0.0001,111690.0,111680.0,0.2403672]
[1756348060665,0.12105,111700.0,111690.0,0.2403592]
[1756348060869,0.54101654,111700.0,111690.0,1.00223029]
[1756348062776,0.54301654,111700.0,111690.0,1.00223029]
[1756348063175,0.57479654,111700.0,111690.0,1.00223029]
[1756348063374,0.6138524,111700.0,111690.0,1.00223029]
[1756348067375,0.6387951,111700.0,111690.0,1.00223029]
[1756348069473,0.6387951,111700.0,111690.0,0.98196492]
[1756348069676,0.6090151,111700.0,111690.0,0.98196492]
[1756348071187,1.0812951,111700.0,111690.0,0.98196492]
[1756348071392,1.85008869,111700.0,111690.0,1.02915279]
[1756348072594,1.87986869,111700.0,111690.0,1.02915279]
[1756348072889,1.87986869,111700.0,111690.0,0.6003592]
[1756348073090,1.87986869,111700.0,111690.0,1.02915279]
[1756348074692,1.87986869,111700.0,111690.0,0.93962359]
[1756348074900,1.4510751,111700.0,111690.0,0.93962359]
[1756348075189,1.87986869,111700.0,111690.0,0.93962359]
[1756348076089,1.4510751,111700.0,111690.0,0.93962359]
[1756348076290,1.87986869,111700.0,111690.0,0.93962359]
[1756348077689,1.85492599,111700.0,111690.0,0.93962359]
[1756348078089,1.85492599,111700.0,111690.0,1.02915309]
[1756348078601,1.85492599,111700.0,111690.0,0.93962359]
[1756348079191,1.85492599,111700.0,111690.0,1.02915299]
[1756348079395,1.85502599,111700.0,111690.0,1.02915299]
[1756348082486,1.85502599,111700.0,111690.0,0.38825]
[1756348082687,2.1299259,111700.0,111690.0,0.36]
[1756348082888,1.70113231,111700.0,111690.0,0.36]
[1756348083088,2.1299259,111700.0,111690.0,0.36]
[1756348083287,2.1299259,111700.0,111690.0,0.38789]
[1756348084094,1.70113231,111700.0,111690.0,0.40628]
[1756348084294,2.1299259,111700.0,111690.0,0.40628]
[1756348084692,0.87885231,111700.0,111690.0,0.42887]
[1756348084885,2.1296859,111700.0,111690.0,0.44817]
[1756348085085,2.1296859,111700.0,111690.0,0.42887]
[1756348086193,2.1296859,111700.0,111690.0,0.40628]
[1756348087385,2.1296059,111700.0,111690.0,0.42887]
[1756348088197,2.1198259,111700.0,111690.0,1.02503289]
[1756348088397,2.1492159,111700.0,111690.0,1.02503289]
[1756348089294,1.3272559,111700.0,111690.0,0.5962393]
[1756348089495,2.1492159,111700.0,111690.0,0.93550359]
[1756348089797,1.3272559,111700.0,111690.0,0.93550359]
[1756348089996,2.1491759,111700.0,111690.0,0.93550359]
[1756348092498,1.72038231,111700.0,111690.0,0.93550359]
[1756348092693,2.1491759,111700.0,111690.0,0.93550359]
[1756348092894,2.0938688,111700.0,111690.0,0.93550359]
[1756348093201,2.0938688,111700.0,111690.0,0.50671]
[1756348093401,2.0938688,111700.0,111690.0,0.93550359]
[1756348093801,1.66507521,111700.0,111690.0,0.93550359]
[1756348093996,2.0938688,111700.0,111690.0,0.93550359]
[1756348094901,2.1045788,111700.0,111690.0,0.93550359]
[1756348095102,1.67578521,111700.0,111690.0,0.93550359]
[1756348095304,2.1045788,111700.0,111690.0,0.93550359]
[1756348100415,1.67578521,111700.0,111690.0,0.93550359]
[1756348100713,2.1045788,111700.0,111690.0,0.93550359]
[1756348100914,2.1045788,111700.0,111690.0,0.50671]
[1756348101212,2.1045788,111700.0,111690.0,0.93550359]
[1756348103518,2.1045788,111700.0,111690.0,0.47363]
[1756348103713,0.0408,111670.0,111660.0,0.83632209]
[1756348103918,1.76680359,111670.0,111660.0,1.24170209]
[1756348104117,1.38680359,111670.0,111660.0,1.24170209]
[1756348104317,0.95801,111670.0,111660.0,1.24170209]
[1756348104714,1.29801,111670.0,111660.0,1.24170209]
[1756348105220,1.29801,111670.0,111660.0,1.24270209]
[1756348105518,1.29801,111670.0,111660.0,1.19525259]
[1756348105719,1.29801,111670.0,111660.0,1.24860259]
[1756348105921,1.29801,111670.0,111660.0,0.8692585]
[1756348106118,1.29801,111670.0,111660.0,1.25060259]
[1756348106318,0.95801,111670.0,111660.0,1.25060259]
[1756348107015,0.95801,111670.0,111660.0,1.24960259]
[1756348107421,0.95801,111670.0,111660.0,1.24760259]
[1756348107819,1.29801,111670.0,111660.0,1.15805409]
[1756348108019,1.29801,111670.0,111660.0,1.24760739]
[1756348109117,1.67935409,111670.0,111660.0,0.67098]
[1756348109312,1.67935409,111670.0,111660.0,0.8717533]
[1756348109517,1.29801,111670.0,111660.0,0.8717533]
[1756348110324,1.29801,111670.0,111660.0,0.7822]
[1756348111822,1.67935409,111670.0,111660.0,0.69093]
[1756348112122,1.92935409,111670.0,111660.0,0.67098]
[1756348118232,1.92927409,111670.0,111660.0,0.67098]
[1756348118535,0.38629,111670.0,111660.0,0.7822]
[1756348118835,0.61637,111670.0,111660.0,1.25309699]
[1756348119229,0.13629,111670.0,111660.0,1.25309699]
[1756348119429,0.85856,111670.0,111660.0,1.25309699]
[1756348119932,0.85856,111670.0,111660.0,1.16354409]
[1756348120133,0.88625,111670.0,111660.0,1.16354409]
[1756348120529,0.06461,111670.0,111660.0,1.16354409]
[1756348120832,0.88625,111670.0,111660.0,1.25309699]
[1756348121135,0.06461,111670.0,111660.0,1.25309699]
[1756348121335,0.50272,111670.0,111660.0,1.50309699]
[1756348121736,0.84416765,111680.0,111670.0,0.15174]
[1756348121936,0.84406765,111680.0,111670.0,0.89308409]
[1756348122231,0.13349765,111680.0,111670.0,0.89308409]
[1756348122435,0.01857765,111680.0,111670.0,1.18262899]
[1756348123430,0.01957765,111680.0,111670.0,1.18262899]
[1756348123831,0.02057765,111680.0,111670.0,1.18262899]
[1756348124234,0.04826765,111680.0,111670.0,1.09308409]
[1756348124432,0.09720765,111680.0,111670.0,1.09308409]
[1756348124632,0.09620765,111680.0,111670.0,1.09308409]
[1756348124832,0.15396765,111680.0,111670.0,0.71174]
[1756348125031,0.15396765,111680.0,111670.0,1.09308409]
[1756348125335,0.12539765,111680.0,111670.0,1.09308409]
[1756348125532,0.10432765,111680.0,111670.0,1.09308409]
[1756348126236,0.10432765,111680.0,111670.0,1.18262899]
[1756348129536,0.08395765,111680.0,111670.0,1.18262899]
[1756348130636,0.01857765,111680.0,111670.0,0.93262899]
[1756348130834,0.82154,111690.0,111680.0,0.2412769]
[1756348131028,0.82144,111690.0,111680.0,0.99284401]
[1756348132043,1.0799324,111700.0,111690.0,0.2412689]
[1756348132338,1.4198324,111700.0,111690.0,0.97261299]
[1756348134140,1.4218324,111700.0,111690.0,0.88308409]
[1756348134436,0.6003924,111700.0,111690.0,0.97261299]
[1756348134641,1.0817924,111700.0,111690.0,0.97261299]
[1756348135041,1.4617924,111700.0,111690.0,0.97261299]
[1756348135541,1.4637924,111700.0,111690.0,0.97261299]
[1756348135840,1.4617924,111700.0,111690.0,0.97261299]
[1756348136235,1.4607924,111700.0,111690.0,0.97261299]
[1756348136434,1.4617924,111700.0,111690.0,0.97261299]
[1756348137646,0.2603924,111700.0,111690.0,0.97261299]
[1756348137848,1.0817124,111700.0,111690.0,0.97261299]
[1756348140347,1.4017124,111700.0,111690.0,0.97261299]
[1756348141346,0.2603924,111700.0,111690.0,0.97261299]
[1756348141646,1.0188124,111700.0,111690.0,0.97261299]
[1756348142146,0.2588324,111700.0,111690.0,0.97261299]
[1756348142348,1.0800724,111700.0,111690.0,0.97261299]
[1756348142937,1.0780724,111700.0,111690.0,0.97261299]
[1756348143550,1.4580724,111700.0,111690.0,0.97261299]
[1756348144851,1.4250024,111700.0,111690.0,0.97261299]
[1756348145146,0.5478824,111700.0,111690.0,0.97261299]
[1756348145446,0.9489124,111700.0,111690.0,0.97261299]
[1756348145651,0.9773824,111700.0,111690.0,0.97261299]
[1756348145841,1.0512924,111700.0,111690.0,0.97261299]
[1756348146038,1.0794824,111700.0,111690.0,0.97261299]
[1756348152148,1.0794824,111700.0,111690.0,0.88308409]
[1756348152349,1.0795824,111700.0,111690.0,0.97261239]
[1756348155355,1.0795824,111700.0,111690.0,1.44878008]
[1756348156447,0.1755824,111700.0,111690.0,1.44878008]
[1756348156653,0.9680724,111700.0,111690.0,1.44878008]
[1756348157452,1.0296124,111700.0,111690.0,1.44878008]
[1756348157652,0.9680724,111700.0,111690.0,1.44878008]
[1756348158248,0.1471124,111700.0,111690.0,1.44878008]
[1756348158650,0.1755824,111700.0,111690.0,1.44878008]
[1756348158850,0.2086524,111700.0,111690.0,1.44878008]
[1756348160155,0.2368424,111700.0,111690.0,1.44878008]
[1756348161155,1.0577224,111700.0,111690.0,1.44878008]
[1756348161351,1.0295324,111700.0,111690.0,1.44878008]
[1756348161751,0.9679924,111700.0,111690.0,1.44878008]
[1756348161954,1.0295324,111700.0,111690.0,1.44878008]
[1756348162153,0.2086524,111700.0,111690.0,1.44878008]
[1756348162553,0.2368424,111700.0,111690.0,1.44878008]
[1756348162952,0.2086524,111700.0,111690.0,1.44878008]
[1756348163151,0.2086524,111700.0,111690.0,1.35925178]
[1756348163152,0.1755824,111700.0,111690.0,1.35925178]
[1756348163456,0.68717829,111700.0,111690.0,0.93049589]
[1756348164755,0.68717829,111700.0,111690.0,1.02002289]
[1756348165054,0.2584224,111700.0,111690.0,1.02002289]
[1756348165254,0.2584224,111700.0,111690.0,1.44877878]
[1756348167457,0.28424715,111700.0,111690.0,1.44877878]
[1756348167651,0.28424715,111700.0,111690.0,1.02002289]
[1756348168957,0.28424715,111700.0,111690.0,1.44877878]
[1756348171248,0.25605715,111700.0,111690.0,1.44877878]
[1756348171452,0.0001,111700.0,111690.0,1.44877878]
[1756348172969,0.0001,111700.0,111690.0,1.45077878]
[1756348173765,0.0001,111700.0,111690.0,1.45177878]
[1756348175365,0.0001,111700.0,111690.0,0.97529012]
[1756348176065,0.0001,111700.0,111690.0,1.79589012]
[1756348176661,0.0001,111700.0,111690.0,1.414867]
[1756348176868,0.0001,111700.0,111690.0,0.594267]
[1756348177069,0.0001,111700.0,111690.0,1.79585012]
[1756348178760,0.0001,111700.0,111690.0,2.06145012]
[1756348179260,0.03708996,111710.0,111690.0,2.06145012]
[1756348179457,0.03708996,111710.0,111700.0,0.61974192]
[1756348179670,0.10824273,111720.0,111710.0,0.2387108]
[1756348179867,0.14522573,111720.0,111710.0,0.71973392]
[1756348180262,0.20583573,111720.0,111710.0,0.71973392]
[1756348181464,0.188833,111720.0,111710.0,0.71973392]
[1756348182577,0.26219461,111720.0,111710.0,0.71973392]
[1756348182770,0.23588461,111720.0,111710.0,0.71973392]
[1756348182970,0.128223,111720.0,111710.0,0.71973392]
[1756348183177,0.098813,111720.0,111710.0,0.71973392]
[1756348183378,0.099813,111720.0,111710.0,0.71973392]
[1756348183577,0.163523,111720.0,111710.0,0.71973392]
[1756348184178,0.189833,111720.0,111710.0,0.71973392]
[1756348190082,0.189833,111720.0,111710.0,0.2492]
[1756348190381,0.529833,111720.0,111710.0,0.63022312]
[1756348190778,1.16085612,111720.0,111710.0,0.2492]
[1756348190978,1.16085612,111720.0,111710.0,0.11748]
[1756348191176,1.1869243,111720.0,111710.0,0.1]
[1756348191481,2.0271643,111720.0,111710.0,0.13955]
[1756348191676,2.0271643,111720.0,111710.0,0.11748]
[1756348192073,2.0271643,111720.0,111710.0,0.1]
[1756348193277,1.7771643,111720.0,111710.0,0.1]
[1756348195973,2.0271643,111720.0,111710.0,0.1]
[1756348198685,2.0271643,111720.0,111710.0,0.02920649]
[1756348198878,0.15067,111710.0,111700.0,0.0001]
[1756348199079,0.90568153,111710.0,111700.0,0.35]
[1756348200376,1.97588153,111710.0,111700.0,0.35]
[1756348200884,1.15568153,111710.0,111700.0,0.35]
[1756348201277,1.15968153,111710.0,111700.0,0.46486]
[1756348201475,0.77865841,111710.0,111700.0,0.49706]
[1756348201777,1.97988153,111710.0,111700.0,0.49706]
[1756348202687,1.97988153,111710.0,111700.0,0.44192]
[1756348202983,1.97788153,111710.0,111700.0,0.35]
[1756348203181,1.15768153,111710.0,111700.0,0.35]
[1756348203387,1.15768153,111710.0,111700.0,0.39007]
[1756348203578,1.97788153,111710.0,111700.0,0.35]
[1756348204086,1.98188153,111710.0,111700.0,0.35]
[1756348207080,1.98184153,111710.0,111700.0,0.35]
[1756348207383,1.98184153,111710.0,111700.0,0.39007]
[1756348207578,1.98184153,111710.0,111700.0,0.35]
[1756348209582,1.89174153,111710.0,111700.0,0.08]
[1756348209886,1.98184153,111710.0,111700.0,0.08]
[1756348211387,1.16168153,111710.0,111700.0,0.08]
[1756348211689,1.98184153,111710.0,111700.0,0.08]
[1756348213890,1.60077841,111710.0,111700.0,0.15227]
[1756348214084,1.98180153,111710.0,111700.0,0.12007]
[1756348214691,1.98180153,111710.0,111700.0,0.08]
[1756348215096,1.98180153,111710.0,111700.0,0.09806]
[1756348215592,1.98180153,111710.0,111700.0,0.08]
[1756348216996,1.95573335,111710.0,111700.0,0.08]
[1756348217196,1.60073235,111710.0,111700.0,0.08]
[1756348217402,1.98175547,111710.0,111700.0,0.08]
[1756348217899,1.98176257,111710.0,111700.0,0.08]
[1756348218798,1.16164257,111710.0,111700.0,0.08]
[1756348218988,1.60069945,111710.0,111700.0,0.09806]
[1756348219189,1.98172257,111710.0,111700.0,0.09806]
[1756348219397,2.02957458,111710.0,111700.0,0.09806]
[1756348219900,1.60069945,111710.0,111700.0,0.22706]
[1756348220195,1.20949458,111710.0,111700.0,0.22706]
[1756348220391,2.02957458,111710.0,111700.0,0.22706]
[1756348220599,1.77957458,111710.0,111700.0,0.90593513]
[1756348220990,1.35069945,111710.0,111700.0,0.90593513]
[1756348221199,1.77957458,111710.0,111700.0,0.90593513]
[1756348222998,1.77957458,111710.0,111700.0,0.47706]
[1756348223194,1.35069945,111710.0,111700.0,0.90593513]
[1756348223394,1.73184212,111710.0,111700.0,0.47706]
[1756348224292,1.73184212,111710.0,111700.0,0.38972]
[1756348224492,1.73184212,111710.0,111700.0,0.37007]
[1756348224694,1.73184212,111710.0,111700.0,0.43075]
[1756348224893,1.73184212,111710.0,111700.0,0.40227]
[1756348225601,1.73184212,111710.0,111700.0,0.22706]
[1756348227101,1.73184212,111710.0,111700.0,0.12007]
[1756348227302,1.73184212,111710.0,111700.0,0.15227]
[1756348228005,1.73184212,111710.0,111700.0,0.22706]
[1756348228804,1.72584212,111710.0,111700.0,0.22706]
[1756348229104,1.72984212,111710.0,111700.0,0.22706]
[1756348231805,1.87854212,111710.0,111700.0,0.22706]